bitfinex-derivatives/quotes_BNBF0:USTF0_20250810
["timestamp","ask_amount","ask_price","bid_price","bid_amount"]
[1754798753748,0.21400635,813.7,812.73,0.98046709]
[1754798753953,0.21400635,813.7,812.74,0.98046709]
[1754798754151,0.21400635,813.7,812.75,0.98046709]
[1754798754347,0.21400635,813.7,812.69,2.72690082]
[1754798754348,0.21400635,813.7,812.76,0.98046709]
[1754798754548,0.21400635,813.7,812.77,0.98046709]
[1754798754750,0.21400635,813.7,812.71,2.72690082]
[1754798754946,0.21400635,813.7,812.72,0.98037364]
[1754798755149,0.21400635,813.7,812.73,0.98037364]
[1754798755348,0.21400635,813.7,812.74,0.98037364]
[1754798755552,0.21400635,813.7,812.75,0.98037364]
[1754798755747,0.21400635,813.7,812.76,0.98037364]
[1754798755947,0.21400635,813.7,812.77,0.98037364]
[1754798756147,0.21400635,813.7,812.74,2.72690082]
[1754798756448,0.21400635,813.7,812.75,0.98090295]
[1754798756652,0.21400635,813.7,812.76,0.98090295]
[1754798756846,0.21400635,813.7,812.77,0.98090295]
[1754798757049,0.21400635,813.7,812.75,2.72690082]
[1754798757252,0.21400635,813.7,812.76,0.98114902]
[1754798757451,0.21400635,813.7,812.77,0.98114902]
[1754798757650,0.21400635,813.7,812.75,2.72690082]
[1754798757950,0.21400635,813.7,812.78,2.72690082]
[1754798758850,0.21400635,813.7,812.82,2.72690082]
[1754798759855,0.21400635,813.7,812.84,2.72690082]
[1754798760849,0.21400635,813.7,812.83,2.72690082]
[1754798761456,0.21400635,813.7,812.87,2.72690082]
[1754798762055,0.21400635,813.7,812.88,2.72690082]
[1754798762452,0.21400635,813.7,812.95,2.72690082]
[1754798763461,0.21400635,813.7,812.76,2.72690082]
[1754798763954,0.21400635,813.7,812.66,2.72690082]
[1754798764454,0.21400635,813.7,812.67,2.72690082]
[1754798765059,0.21400635,813.7,812.65,2.72690082]
[1754798769561,0.21400635,813.7,812.64,2.72690082]
[1754798770364,0.21400635,813.7,812.63,2.72690082]
[1754798770666,0.21400635,813.7,812.62,2.72690082]
[1754798771363,0.21400635,813.7,812.73,2.72690082]
[1754798772159,0.21400635,813.7,812.72,2.72690082]
[1754798772764,0.21400635,813.7,812.46,3.81766115]
[1754798772765,0.21400635,813.7,812.79,2.72690082]
[1754798773366,0.21400635,813.7,812.75,2.72690082]
[1754798773764,0.21400635,813.7,812.68,2.72690082]
[1754798773961,0.264,813.65,812.68,2.72690082]
[1754798774262,0.34,813.55,812.3,2.72690082]
[1754798774562,0.5,813.59,812.3,2.72690082]
[1754798774961,0.5,813.59,812.27,2.72690082]
[1754798775466,0.294,813.64,812.3,2.72690082]
[1754798776368,0.294,813.64,812.1,0.927]
[1754798776566,0.294,813.64,812.11,0.95057325]
[1754798776868,0.294,813.64,812.12,0.95057325]
[1754798777065,0.294,813.64,812.13,0.95057325]
[1754798777368,0.294,813.64,812.14,0.95057325]
[1754798777570,0.294,813.64,812.15,0.95057325]
[1754798777769,0.294,813.64,812.16,0.95057325]
[1754798777966,0.294,813.64,812.17,0.95057325]
[1754798778170,0.294,813.64,812.18,0.95057325]
[1754798778366,0.294,813.64,812.19,0.95057325]
[1754798778572,0.294,813.64,812.2,0.95057325]
[1754798778770,0.294,813.64,812.21,0.95057325]
[1754798778971,0.294,813.64,812.22,0.95057325]
[1754798779271,0.294,813.64,812.1,0.927]
[1754798779470,0.3,813.61,812.11,0.94951569]
[1754798779671,0.3,813.61,812.12,0.94951569]
[1754798779872,0.5,813.54,812.13,0.94951569]
[1754798780069,0.5,813.54,812.14,0.94951569]
[1754798780270,0.5,813.54,812.15,0.94951569]
[1754798780472,0.5,813.54,812.16,0.94951569]
[1754798780773,0.5,813.64,812.17,0.94951569]
[1754798780969,0.5,813.64,812.1,0.927]
[1754798780970,0.5,813.64,812.18,0.94932269]
[1754798781172,0.5,813.64,812.1,0.927]
[1754798781370,0.5,813.69,812.11,0.94899623]
[1754798781569,0.5,813.69,812.12,0.94899623]
[1754798781769,0.5,813.69,812.1,0.927]
[1754798781770,0.5,813.69,812.13,0.94899623]
[1754798781973,0.5,813.69,812.14,0.94899623]
[1754798782174,0.5,813.69,812.15,0.94899623]
[1754798782375,0.5,813.69,812.16,0.94899623]
[1754798782675,0.5,813.69,812.17,0.94899623]
[1754798782870,0.5,813.69,812.18,0.94899623]
[1754798783070,0.5,813.69,812.1,0.927]
[1754798783273,0.5,813.69,812.11,0.94879538]
[1754798783474,0.5,813.69,812.12,0.94879538]
[1754798783672,0.5,813.69,812.13,0.94879538]
[1754798783876,0.5,813.69,812.14,0.94879538]
[1754798784076,0.5,813.69,812.15,0.94879538]
[1754798784277,0.5,813.69,812.16,0.94879538]
[1754798784472,0.5,813.69,812.1,0.927]
[1754798784677,0.5,813.69,812.11,0.94831752]
[1754798784875,0.5,813.69,812.1,0.927]
[1754798785174,0.5,813.69,812.11,0.94831779]
[1754798785374,0.5,813.69,812.1,0.927]
[1754798785578,0.5,813.69,812.11,0.94805466]
[1754798785779,0.5,813.69,812.1,0.927]
[1754798785979,0.5,813.69,812.11,0.94805466]
[1754798786176,0.5,813.69,812.1,0.927]
[1754798786376,0.5,813.69,812.11,0.94781503]
[1754798786576,0.5,813.69,812.1,0.927]
[1754798786784,0.5,813.69,812.11,0.94781689]
[1754798786988,0.5,813.69,812.1,0.927]
[1754798787188,0.5,813.69,812.11,0.94781181]
[1754798787489,0.5,813.69,812.1,0.927]
[1754798787687,0.5,813.69,812.11,0.94758993]
[1754798787889,0.5,813.69,812.12,0.94758993]
[1754798788084,0.5,813.69,812.1,0.927]
[1754798788385,0.5,813.69,812.11,0.94758993]
[1754798788586,0.5,813.69,812.1,0.927]
[1754798788786,0.5,813.69,812.11,0.94738352]
[1754798788985,0.5,813.69,812.1,0.927]
[1754798789283,0.33,813.63,812.11,0.94761166]
[1754798789484,0.5,813.69,812.1,0.927]
[1754798790083,0.5,813.69,812.11,0.9474162]
[1754798790287,0.21400635,813.7,812.1,0.927]
[1754798790583,0.21400635,813.7,812.11,0.94726946]
[1754798790783,0.21400635,813.7,812.1,0.927]
[1754798799398,0.298,813.62,812.1,0.927]
[1754798799900,0.298,813.61,812.1,0.927]
[1754798800101,0.21400635,813.7,812.11,0.94628514]
[1754798800301,0.21400635,813.7,812.12,0.94628514]
[1754798800497,0.21400635,813.7,812.13,0.94628514]
[1754798800697,0.21400635,813.7,812.14,0.94628514]
[1754798800900,0.21400635,813.7,812.15,0.94628514]
[1754798801098,0.21400635,813.7,812.16,0.94628514]
[1754798801300,0.21400635,813.7,812.17,0.94628514]
[1754798801498,0.21400635,813.7,812.18,0.94628514]
[1754798801703,0.21400635,813.7,812.19,0.94628514]
[1754798801904,0.21400635,813.7,812.2,0.94628514]
[1754798802199,0.21400635,813.7,812.21,0.94628514]
[1754798802500,0.21400635,813.7,812.22,0.94628514]
[1754798802705,0.21400635,813.7,812.23,0.94628514]
[1754798803004,0.21400635,813.7,812.24,0.94628514]
[1754798803205,0.21400635,813.7,812.25,0.94628514]
[1754798803500,0.21400635,813.7,812.26,0.94628514]
[1754798803705,0.21400635,813.7,812.27,0.94628514]
[1754798803905,0.21400635,813.7,812.28,0.94628514]
[1754798804203,0.21400635,813.7,812.29,0.94628514]
[1754798804402,0.21400635,813.7,812.3,0.94628514]
[1754798804604,0.21400635,813.7,812.31,0.94628514]
[1754798804804,0.21400635,813.7,812.32,0.94628514]
[1754798805104,0.21400635,813.7,812.33,0.94628514]
[1754798805301,0.21400635,813.7,812.1,0.927]
[1754798805302,0.21400635,813.7,812.34,0.94628514]
[1754798805503,0.21400635,813.7,812.35,0.94628514]
[1754798805701,0.21400635,813.7,812.36,0.94628514]
[1754798805903,0.21400635,813.7,812.1,0.927]
[1754798806102,0.21400635,813.7,812.11,0.94647168]
[1754798806302,0.21400635,813.7,812.12,0.94647168]
[1754798806504,0.21400635,813.7,812.13,0.94647168]
[1754798806703,0.21400635,813.7,812.14,0.94647168]
[1754798806902,0.21400635,813.7,812.15,0.94647168]
[1754798807106,0.21400635,813.7,812.16,0.94647168]
[1754798807304,0.21400635,813.7,812.17,0.94647168]
[1754798807502,0.21400635,813.7,812.18,0.94647168]
[1754798807704,0.21400635,813.7,812.19,0.94647168]
[1754798807907,0.21400635,813.7,812.2,0.94647168]
[1754798808107,0.21400635,813.7,812.21,0.94647168]
[1754798808308,0.21400635,813.7,812.22,0.94647168]
[1754798808508,0.21400635,813.7,812.23,0.94647168]
[1754798808808,0.21400635,813.7,812.24,0.94647168]
[1754798809007,0.21400635,813.7,812.25,0.94647168]
[1754798809204,0.21400635,813.7,812.26,0.94647168]
[1754798809408,0.21400635,813.7,812.27,0.94647168]
[1754798809608,0.21400635,813.7,812.28,0.94647168]
[1754798809805,0.21400635,813.7,812.29,0.94647168]
[1754798810107,0.21400635,813.7,812.3,0.94647168]
[1754798810301,0.21400635,813.7,811.4,3.81766115]
[1754798810302,0.21400635,813.7,812.31,0.94647168]
[1754798810504,0.21400635,813.7,812.32,0.94647168]
[1754798810706,0.37,813.64,812.33,0.94647168]
[1754798810904,0.261,813.64,811.78,2.72690082]
[1754798811105,0.261,813.64,811.79,0.94760799]
[1754798811408,0.261,813.64,811.8,0.94760799]
[1754798811706,0.261,813.64,811.81,0.94760799]
[1754798811904,0.261,813.64,811.82,0.94760799]
[1754798812108,0.261,813.64,811.83,0.94760799]
[1754798812308,0.261,813.64,811.84,0.94760799]
[1754798812610,0.261,813.64,811.85,3.67450881]
[1754798812908,0.261,813.64,811.86,2.26460799]
[1754798813104,0.261,813.64,811.87,0.94760799]
[1754798813404,0.261,813.64,811.88,0.94760799]
[1754798813709,0.21400635,813.7,811.89,0.94760799]
[1754798814003,0.21400635,813.7,811.9,0.94760799]
[1754798814205,0.21400635,813.7,811.91,0.94760799]
[1754798814406,0.21400635,813.7,811.92,0.94760799]
[1754798814610,0.21400635,813.7,811.93,0.94760799]
[1754798814804,0.21400635,813.7,811.94,0.94760799]
[1754798815004,0.21400635,813.7,811.95,0.94760799]
[1754798815207,0.21400635,813.7,811.89,2.72690082]
[1754798815208,0.21400635,813.7,811.96,0.94760799]
[1754798815408,0.21400635,813.7,811.97,0.94760799]
[1754798815605,0.21400635,813.7,811.98,0.94760799]
[1754798815806,0.327,813.66,811.99,0.94760799]
[1754798816006,0.21400635,813.7,812.0,0.94760799]
[1754798816307,0.21400635,813.7,812.01,0.94760799]
[1754798816510,0.21400635,813.7,812.02,0.94760799]
[1754798816809,0.21400635,813.7,812.03,0.94760799]
[1754798817009,0.21400635,813.7,811.92,2.72690082]
[1754798817010,0.21400635,813.7,812.27,2.72690082]
[1754798817608,0.21400635,813.7,812.29,2.72690082]
[1754798818710,0.307,813.69,812.31,2.72690082]
[1754798818911,0.21400635,813.7,812.31,2.72690082]
[1754798819907,0.21400635,813.7,812.34,2.72690082]
[1754798820711,0.21400635,813.7,812.01,3.81766115]
[1754798820712,0.21400635,813.7,812.35,2.72690082]
[1754798821108,0.281,813.69,812.35,2.72690082]
[1754798821311,0.281,813.69,812.38,2.72690082]
[1754798821811,0.281,813.69,812.49,2.72690082]
[1754798822311,0.281,813.69,812.63,2.72690082]
[1754798822512,0.21400635,813.7,812.63,2.72690082]
[1754798823012,0.21400635,813.7,812.55,2.72690082]
[1754798823509,0.21400635,813.7,812.58,2.72690082]
[1754798823712,0.5,813.62,812.58,2.72690082]
[1754798824014,0.21400635,813.7,812.58,2.72690082]
[1754798824308,0.333,813.62,812.58,2.72690082]
[1754798824609,0.21400635,813.7,812.55,2.72690082]
[1754798825511,0.21400635,813.7,812.36,2.72690082]
[1754798826213,0.21400635,813.7,812.34,2.72690082]
[1754798826509,0.21400635,813.7,812.36,2.72690082]
[1754798827011,0.21400635,813.7,812.38,2.72690082]
[1754798827411,0.21400635,813.7,812.39,0.95098114]
[1754798827613,0.21400635,813.7,812.4,0.95098114]
[1754798827811,0.21400635,813.7,812.41,0.95098114]
[1754798828111,0.21400635,813.7,812.42,0.95098114]
[1754798828310,0.21400635,813.7,812.43,0.95098114]
[1754798828514,0.21400635,813.7,812.44,0.95098114]
[1754798828715,0.21400635,813.7,812.45,0.95098114]
[1754798828914,0.21400635,813.7,812.31,2.72690082]
[1754798829117,0.21400635,813.7,812.32,3.67775411]
[1754798829314,0.21400635,813.7,812.33,0.95085329]
[1754798829518,0.21400635,813.7,812.34,0.95085329]
[1754798829715,0.21400635,813.7,812.35,0.95085329]
[1754798829915,0.21400635,813.7,812.33,2.72690082]
[1754798829916,0.21400635,813.7,812.36,0.95085329]
[1754798830120,0.21400635,813.7,812.37,0.95085329]
[1754798830318,0.21400635,813.7,812.38,0.95085329]
[1754798830519,0.21400635,813.7,812.39,0.95085329]
[1754798830819,0.21400635,813.7,812.4,0.95085329]
[1754798831116,0.21400635,813.7,812.34,2.72690082]
[1754798831318,0.21400635,813.7,812.36,2.72690082]
[1754798831819,0.21400635,813.7,812.37,2.72690082]
[1754798832315,0.21400635,813.7,812.36,2.72690082]
[1754798832913,0.21400635,813.7,812.34,2.72690082]
[1754798833319,0.21400635,813.7,812.53,2.72690082]
[1754798833818,0.21400635,813.7,812.5,2.72690082]
[1754798834414,0.21400635,813.7,812.39,2.72690082]
[1754798834914,0.21400635,813.7,812.42,2.72690082]
[1754798835318,0.21400635,813.7,812.39,2.72690082]
[1754798836018,0.21400635,813.7,812.38,2.72690082]
[1754798836821,0.301,813.66,812.38,2.72690082]
[1754798837022,0.301,813.67,812.41,2.72690082]
[1754798837520,0.301,813.51,812.41,2.72690082]
[1754798837736,0.5,813.62,812.41,2.72690082]
[1754798838120,0.5,813.62,812.52,2.72690082]
[1754798838624,0.5,813.62,812.13,2.72690082]
[1754798838826,0.5,813.62,812.14,0.95277936]
[1754798839127,0.5,813.62,812.12,2.72690082]
[1754798840220,0.5,813.59,812.47,2.72690082]
[1754798840726,0.5,813.59,812.42,2.72690082]
[1754798841126,0.5,813.59,812.43,2.72690082]
[1754798841422,0.301,813.4,812.43,2.72690082]
[1754798841621,0.5,813.49,812.16,2.72690082]
[1754798842025,0.21400635,813.7,811.86,1.317]
[1754798842026,0.29,813.2,811.86,1.317]
[1754798842222,0.398,813.29,811.87,0.95400795]
[1754798842423,0.344,813.19,811.88,0.95400795]
[1754798842622,0.321,813.19,811.89,0.95400795]
[1754798842826,0.452,813.19,811.86,1.317]
[1754798843123,0.5,813.16,811.87,0.95336715]
[1754798843327,0.5,813.16,811.86,1.317]
[1754798844629,0.324,813.04,811.86,1.317]
[1754798844930,0.5,813.16,811.86,1.317]
[1754798846131,0.29,813.18,811.86,1.317]
[1754798847935,0.29,813.18,811.23,2.72690082]
[1754798848235,0.29,813.18,811.24,0.9507863]
[1754798848536,0.29,813.18,811.25,0.9507863]
[1754798848731,0.282,813.07,811.26,0.9507863]
[1754798849030,0.278,813.08,811.36,2.72690082]
[1754798849232,0.278,813.08,811.37,0.9507863]
[1754798849431,0.278,813.08,811.39,2.72690082]
[1754798849635,0.278,813.08,811.4,0.9507863]
[1754798849836,0.278,813.08,811.41,0.9507863]
[1754798850032,0.278,813.08,811.39,2.72690082]
[1754798850033,0.278,813.08,811.42,0.9507863]
[1754798850237,0.278,813.08,811.43,0.9507863]
[1754798850448,0.278,813.08,811.44,0.9507863]
[1754798850634,0.278,813.08,811.45,0.9507863]
[1754798850834,0.278,813.08,811.36,2.72690082]
[1754798850835,0.278,813.08,811.46,0.9507863]
[1754798851141,0.294,813.18,811.47,0.9507863]
[1754798851335,0.294,813.18,811.48,0.9507863]
[1754798851634,0.294,813.18,811.49,0.9507863]
[1754798851834,0.294,813.18,811.5,0.94928367]
[1754798852036,0.294,813.18,811.51,0.94928367]
[1754798852238,0.294,813.18,811.52,0.94928367]
[1754798852437,0.294,813.18,811.53,0.94928367]
[1754798852642,0.294,813.18,811.54,0.94928367]
[1754798852839,0.294,813.18,811.55,0.94928367]
[1754798853137,0.294,813.18,811.56,0.94928367]
[1754798853434,0.294,813.18,811.57,0.94928367]
[1754798853634,0.294,813.18,811.58,0.94928367]
[1754798853838,0.294,813.18,811.35,1.171]
[1754798853839,0.294,813.18,811.59,0.94928367]
[1754798854036,0.336,813.06,811.6,0.94928367]
[1754798854236,0.336,812.99,811.61,0.94928367]
[1754798854540,0.294,813.09,811.62,0.94928367]
[1754798854835,0.294,813.09,811.35,1.171]
[1754798855041,0.309,812.8,811.36,0.94837958]
[1754798855238,0.309,812.8,811.37,0.94837958]
[1754798855436,0.464,812.8,811.38,0.94837958]
[1754798855635,0.351,812.6,811.39,0.94837958]
[1754798855836,0.5,812.78,811.4,0.94837958]
[1754798856043,0.5,812.8,811.41,0.94837958]
[1754798856237,0.336,812.64,811.42,0.94837958]
[1754798856441,0.5,812.79,811.35,1.171]
[1754798856642,0.5,812.79,811.36,0.94759798]
[1754798856937,0.5,812.79,811.37,0.94759798]
[1754798857138,0.5,812.79,811.38,0.94759798]
[1754798857341,0.5,812.79,811.39,0.94759798]
[1754798857536,0.5,812.66,811.4,0.94759798]
[1754798857738,0.5,812.66,811.35,1.171]
[1754798858041,0.293,812.62,811.36,0.94708828]
[1754798858236,0.307,812.51,811.35,1.171]
[1754798858537,0.293,812.62,811.35,1.171]
[1754798858939,0.489,812.62,811.35,1.171]
[1754798859141,0.378,812.62,811.35,1.171]
[1754798859539,0.267,812.62,811.35,1.171]
[1754798860738,0.294,812.71,811.35,1.171]
[1754798863545,0.378,812.61,811.35,1.171]
[1754798863744,0.267,812.61,811.35,1.171]
[1754798865043,0.323,812.51,811.35,1.171]
[1754798865246,0.378,812.61,811.35,1.171]
[1754798865449,0.307,812.48,811.35,1.171]
[1754798865647,0.323,812.58,811.35,1.171]
[1754798865847,0.394,812.56,811.35,1.171]
[1754798866047,0.281,812.44,811.35,1.171]
[1754798866448,0.5,812.55,811.35,1.171]
[1754798867854,0.301,812.53,811.35,1.171]
[1754798868056,0.5,812.55,811.35,1.171]
[1754798870553,0.324,812.45,811.35,1.171]
[1754798870752,0.21400635,813.7,811.35,1.171]
[1754798870753,0.5,812.54,811.35,1.171]
[1754798870952,0.5,812.55,811.35,1.171]
[1754798874858,0.5,812.66,811.35,1.171]
[1754798875158,0.5,812.74,811.35,1.171]
[1754798875957,0.31,812.8,811.35,1.171]
[1754798876256,0.5,812.85,811.35,1.171]
[1754798879659,0.324,812.75,811.35,1.171]
[1754798879859,0.324,812.78,811.35,1.171]
[1754798880465,0.281,812.65,811.35,1.171]
[1754798880962,0.281,812.66,811.35,1.171]
[1754798881567,0.5,812.75,811.35,1.171]
[1754798881961,0.307,812.58,811.35,1.171]
[1754798882166,0.307,812.68,811.35,1.171]
[1754798882466,0.378,812.65,811.35,1.171]
[1754798882867,0.5,812.66,811.35,1.171]
[1754798883163,0.5,812.74,811.35,1.171]
[1754798883364,0.293,812.69,811.35,1.171]
[1754798883966,0.404,812.69,811.35,1.171]
[1754798884974,0.378,812.69,811.35,1.171]
[1754798885273,0.404,812.69,811.35,1.171]
[1754798885573,0.307,812.63,811.35,1.171]
[1754798885870,0.378,812.69,811.35,1.171]
[1754798886068,0.267,812.69,811.35,1.171]
[1754798886273,0.378,812.69,811.35,1.171]
[1754798887767,0.301,812.53,811.35,1.171]
[1754798887972,0.301,812.54,811.35,1.171]
[1754798888268,0.5,812.64,811.35,1.171]
[1754798888974,0.5,812.59,811.35,1.171]
[1754798889570,0.5,812.63,811.35,1.171]
[1754798890872,0.5,812.74,811.35,1.171]
[1754798892469,0.301,812.68,811.35,1.171]
[1754798896176,0.398,812.7,811.35,1.171]
[1754798896374,0.5,812.74,811.35,1.171]
[1754798897071,0.5,812.78,811.35,1.171]
[1754798897972,0.336,812.69,811.35,1.171]
[1754798898272,0.5,812.78,811.35,1.171]
[1754798898777,0.336,812.82,811.36,0.94913687]
[1754798899077,0.5,812.88,811.35,1.171]
[1754798899274,0.336,812.84,811.36,0.94913669]
[1754798899472,0.5,812.88,811.37,0.94913669]
[1754798899772,0.5,812.9,811.38,0.94913669]
[1754798899974,0.5,812.9,811.39,0.94913669]
[1754798900173,0.5,812.9,811.4,0.94913669]
[1754798900377,0.5,812.9,811.35,1.171]
[1754798900378,0.5,812.9,811.41,0.94913669]
[1754798900576,0.5,812.9,811.42,0.94913669]
[1754798900774,0.5,812.9,811.35,1.171]
[1754798900976,0.5,812.9,811.36,0.95060107]
[1754798901176,0.437,812.91,811.37,0.95060107]
[1754798901381,0.352,812.96,811.38,0.95060107]
[1754798901583,0.352,812.96,811.39,0.95060107]
[1754798901878,0.352,812.96,811.4,0.95060107]
[1754798902081,0.352,812.96,811.41,0.95060107]
[1754798902382,0.5,813.09,811.42,0.95060107]
[1754798902581,0.325,812.99,811.43,0.95060107]
[1754798902778,0.336,812.99,811.44,0.95060107]
[1754798902979,0.352,813.04,811.45,0.95060107]
[1754798903181,0.5,813.15,811.46,0.95060107]
[1754798903477,0.406,813.18,811.47,0.95060107]
[1754798903678,0.336,813.07,811.48,0.95060107]
[1754798903882,0.352,813.14,811.49,0.95060107]
[1754798904178,0.352,813.14,811.5,0.95060107]
[1754798904382,0.352,813.14,811.51,0.95060107]
[1754798904582,0.309,813.01,811.52,0.95060107]
[1754798904781,0.21431013,812.74,811.53,0.95060107]
[1754798904982,0.21431013,812.74,811.56,2.72690082]
[1754798905180,0.21431013,812.74,811.57,0.95060107]
[1754798905483,0.21431013,812.74,811.58,0.95060107]
[1754798905777,0.21431013,812.74,811.59,0.95060107]
[1754798906079,0.21431013,812.74,811.6,0.95060107]
[1754798906283,0.21431013,812.74,811.61,0.95060107]
[1754798906482,0.21431013,812.74,811.62,0.95060107]
[1754798906684,0.21431013,812.74,811.63,0.95060107]
[1754798906980,0.21431013,812.74,811.64,0.95060107]
[1754798907186,0.21431013,812.74,811.65,0.95060107]
[1754798907486,0.21431013,812.74,811.66,0.95060107]
[1754798907782,0.21431013,812.74,811.67,0.95060107]
[1754798908084,0.21431013,812.74,811.68,0.95060107]
[1754798908283,0.21431013,812.74,811.69,0.95060107]
[1754798908483,0.21431013,812.74,811.7,0.95060107]
[1754798908680,0.21431013,812.74,811.71,0.95060107]
[1754798908883,0.21431013,812.74,811.72,0.95060107]
[1754798909085,0.21431013,812.74,811.09,2.72690082]
[1754798909281,0.21431013,812.74,811.21,2.72690082]
[1754798909480,0.21431013,812.74,811.22,0.95120258]
[1754798909685,0.21431013,812.74,811.23,0.95120258]
[1754798909882,0.21431013,812.74,811.24,0.95120258]
[1754798910085,0.21431013,812.74,811.25,0.95120258]
[1754798910382,0.21431013,812.74,811.38,2.72690082]
[1754798910584,0.21431013,812.74,811.39,0.95120258]
[1754798910783,0.21431013,812.74,811.4,0.95120258]
[1754798910983,0.21431013,812.74,811.41,0.95120258]
[1754798911182,0.21431013,812.74,811.42,0.95120258]
[1754798911386,0.21431013,812.74,811.46,2.72690082]
[1754798911585,0.21431013,812.74,811.47,0.95120258]
[1754798911786,0.21431013,812.74,811.48,0.95120258]
[1754798912087,0.21431013,812.74,811.49,0.95120258]
[1754798912385,0.21431013,812.74,811.54,2.72690082]
[1754798912584,0.21431013,812.74,811.55,0.95120258]
[1754798912788,0.21431013,812.74,811.57,2.72690082]
[1754798912987,0.21431013,812.74,811.58,0.95120258]
[1754798913187,0.21431013,812.74,811.59,0.95120258]
[1754798913485,0.21431013,812.74,811.6,0.95120258]
[1754798913689,0.21431013,812.74,811.61,0.95120258]
[1754798913890,0.21431013,812.74,811.62,0.95120258]
[1754798914088,0.21431013,812.74,811.63,0.95120258]
[1754798914288,0.21431013,812.74,811.64,0.95120258]
[1754798914486,0.21431013,812.74,811.65,0.95120258]
[1754798914690,0.21431013,812.74,811.66,0.95120258]
[1754798914990,0.21431013,812.74,811.67,0.95120258]
[1754798915290,0.21431013,812.74,811.68,0.95091969]
[1754798915486,0.21431013,812.74,811.69,0.95091969]
[1754798915691,0.21431013,812.74,811.7,0.95091969]
[1754798915888,0.21431013,812.74,811.49,2.72690082]
[1754798916088,0.21431013,812.74,811.5,0.95081925]
[1754798916290,0.21431013,812.74,811.51,0.95081925]
[1754798916487,0.21431013,812.74,811.52,0.95081925]
[1754798916692,0.21431013,812.74,811.53,0.95081925]
[1754798916889,0.21431013,812.74,811.54,0.95081925]
[1754798917187,0.21431013,812.74,811.55,0.95081925]
[1754798917387,0.21431013,812.74,811.49,2.72690082]
[1754798917388,0.21431013,812.74,811.56,0.95081925]
[1754798917589,0.21431013,812.74,811.57,0.95081925]
[1754798917785,0.21431013,812.74,811.58,0.95081925]
[1754798917986,0.21431013,812.74,811.59,0.95081925]
[1754798918189,0.21431013,812.74,811.6,0.95081925]
[1754798918388,0.21431013,812.74,811.61,0.95081925]
[1754798918591,0.21431013,812.74,811.62,0.95081925]
[1754798918791,0.21431013,812.74,811.63,0.95081925]
[1754798919091,0.21431013,812.74,811.64,0.95081925]
[1754798919287,0.21431013,812.74,811.65,0.95081925]
[1754798919589,0.21431013,812.74,811.66,0.95081925]
[1754798919791,0.21431013,812.74,811.67,0.95081925]
[1754798919991,0.21431013,812.74,811.68,0.95081925]
[1754798920190,0.21431013,812.74,811.69,0.95081925]
[1754798920391,0.21431013,812.74,811.7,0.95081925]
[1754798920698,0.21431013,812.74,811.71,0.95081925]
[1754798920892,0.21431013,812.74,811.4,0.917]
[1754798921094,0.21431013,812.74,811.41,0.95045114]
[1754798921292,0.21431013,812.74,811.53,2.72690082]
[1754798921997,0.21431013,812.74,811.51,2.72690082]
[1754798922197,0.21431013,812.74,811.52,0.95051317]
[1754798922397,0.21431013,812.74,811.53,0.95051317]
[1754798922697,0.21431013,812.74,811.4,0.917]
[1754798922898,0.21431013,812.74,811.41,0.95050414]
[1754798923094,0.21431013,812.74,811.42,0.95050414]
[1754798923295,0.21431013,812.74,811.43,0.95050414]
[1754798923499,0.21431013,812.74,811.44,0.95050414]
[1754798923696,0.21431013,812.74,811.45,0.95050414]
[1754798923998,0.21431013,812.74,811.46,0.95050414]
[1754798924195,0.21431013,812.74,811.47,0.95050414]
[1754798924401,0.21431013,812.74,811.48,0.95050414]
[1754798924599,0.21431013,812.74,811.49,0.95050414]
[1754798924797,0.21431013,812.74,811.5,0.95050414]
[1754798924996,0.21431013,812.74,811.51,0.95050414]
[1754798925200,0.21431013,812.74,811.52,0.95050414]
[1754798925394,0.21431013,812.74,811.53,0.95050414]
[1754798925708,0.21431013,812.74,811.2,2.72690082]
[1754798926002,0.21431013,812.74,811.21,0.95057536]
[1754798926298,0.21431013,812.74,811.22,0.95057536]
[1754798926501,0.21431013,812.74,811.23,0.95057536]